[Event "44th Chess Olympiad Women 2022"]
[Site "Chennai"]
[Date "2022.08.05"]
[Round "7.38"]
[White "Milovic, Aleksandra"]
[Black "Mwango, Lorita"]
[Result "1/2-1/2"]
[ECO "D00"]
[WhiteElo "2129"]
[BlackElo "1920"]
[Annotator "TA"]
[PlyCount "95"]
[EventDate "2022.07.29"]
[EventType "team-tourn"]
[EventCountry "IND"]
[SourceTitle "playchess.com"]
[Source "ChessBase"]
[SourceQuality "1"]
[WhiteTeam "Montenegro"]
[BlackTeam "Zambia"]
[WhiteTeamCountry "MNE"]
[BlackTeamCountry "ZAM"]
[TimeControl "40/5400+30:1800+30"]

{[%evp 9,95,5,11,0,10,6,23,-18,-8,-27,-13,-46,-29,-31,-25,-30,-24,-37,0,-16,-19,-24,-25,-21,-15,-52,-70,-54,-25,-20,0,0,9,11,11,11,122,127,136,135,175,70,72,81,79,28,20,4,3,10,8,0,8,2,1,0,0,-1,0,0,0,0,8,0,0,0,0,0,0,0,0,-26,0,-109,0,0,0,-8,-8,-8,0,0,0,-8,0,0,0,-8]} 1. d4 {[%emt 0:00:09]} d5 {[%emt 0:00:08]} 2. Nc3 {[%emt 0:00:07]} Nf6 {[%emt 0:00:14]} 3. Bf4 {[%emt 0:00:09]} a6 {[%emt 0:00:38]} 4. e3 {[%emt 0:00:24]} Bf5 {[%emt 0:00:17]} 5. Nf3 {[%emt 0:00:22]} e6 {[%emt 0:00:28]} 6. Ne5 {[%emt 0:00:08] D00: 1 d4 d5: Unusual lines.} h6 {[%emt 0:01:03]} 7. g4 {[%emt 0:01:45]} Bh7 {[%emt 0:00:30] [#]} 8. a3 $146 {[%emt 0:08:03] White has an edge.} ({Predecessor:} 8. h4 Nfd7 9. Bd3 Nxe5 10. Bxe5 Bxd3 11. Qxd3 Nc6 12. Bg3 Qd7 13. Ne2 h5 14. g5 {0-1 (48) Bluebaum,M (2672)-Goryachkina,A (2592) Chess.com INT 2020}) 8... Nbd7 {[%emt 0:00:36]} 9. h4 {[%emt 0:01:32]} Nxe5 {[%emt 0:08:12]} 10. Bxe5 {[%emt 0:04:43]} Nd7 {[%emt 0:01:52]} 11. Bd3 {[%emt 0:05:13]} Bxd3 {[%emt 0:06:34]} 12. Qxd3 {[%emt 0:00:16]} c5 {[%emt 0:03:42]} 13. Bg3 {[%emt 0:07:27]} Be7 {[%emt 0:01:17]} 14. O-O-O {[%emt 0:10:25]} cxd4 {[%emt 0:02:53]} 15. Qxd4 {[%emt 0:02:59]} Bf6 {[%emt 0:00:49]} 16. Qb4 {[%emt 0:01:32]} Qb6 {[%emt 0:00:30]} 17. g5 {[%emt 0:14:33]} Qxb4 {[%emt 0:01:52]} ({Much weaker is} 17... hxg5 18. hxg5 Rxh1 19. Rxh1 Qxb4 20. axb4 Bxg5 21. Rh8+ Nf8 22. Na4 $11) 18. axb4 {[%emt 0:00:05]} Be7 {[%emt 0:01:06]} ({Of course not} 18... hxg5 19. hxg5 Rxh1 20. Rxh1 Bxg5 21. Rh8+ Nf8 22. Na4 $11) (18... Bxc3 $5 19. bxc3 Rc8 $15) 19. e4 {[%emt 0:03:05]} dxe4 {[%emt 0:04:22]} 20. Nxe4 {[%emt 0:00:59]} hxg5 {[%emt 0:01:37]} 21. hxg5 {[%emt 0:00:51]} Rxh1 {[%emt 0:00:44]} 22. Rxh1 {[%emt 0:00:05]} O-O-O {[%emt 0:05:39]} (22... Bxb4 $11 {keeps the balance.} 23. Rh8+ Bf8) 23. Bd6 $16 {[%emt 0:03:30]} Bf8 {[%emt 0:04:08] [#]} 24. Rh3 $1 {[%emt 0:08:39] And now Rc3+ would win. 0x0.00236412ef82dp-1022s more active pieces.} Nb8 {[%emt 0:04:55]} 25. Rh8 {[%emt 0:01:01]} (25. Bxf8 $18 Rxf8 26. Rh7) 25... Be7 $14 {[%emt 0:01:19]} 26. Rxd8+ {[%emt 0:01:41]} Bxd8 $16 {[%emt 0:00:20][%mdl 4096] Endgame KBN-KBN} 27. Be5 {[%emt 0:02:16]} (27. Bf8 $16) 27... Be7 $1 $11 {[%emt 0:01:14]} 28. Bxg7 {[%emt 0:01:57] White wants to play c3.} Bxb4 {[%emt 0:00:12]} 29. c3 {[%emt 0:01:57]} Be7 {[%emt 0:00:21]} 30. Kd2 {[%emt 0:03:17]} Kd7 {[%emt 0:00:19]} 31. Kd3 {[%emt 0:00:15]} Kc6 {[%emt 0:00:36]} 32. f4 {[%emt 0:01:19]} Nd7 {[%emt 0:00:17]} 33. b4 {[%emt 0:00:55]} Nb6 {[%emt 0:02:25]} 34. Nd2 {[%emt 0:03:29]} Nd5 {[%emt 0:00:59]} 35. Ke4 {[%emt 0:00:39]} Bd6 {[%emt 0:00:16]} 36. Be5 {[%emt 0:00:34]} Bxe5 {[%emt 0:00:48]} 37. Kxe5 {[%emt 0:00:05]} Nxc3 {[%emt 0:00:15] KN-KN} 38. Kf6 {[%emt 0:00:13]} Nd5+ {[%emt 0:00:20]} 39. Kxf7 {[%emt 0:00:07]} Nxf4 {[%emt 0:00:05] [#] Strongly threatening ...Kb5.} 40. Ne4 {[%emt 0:07:33]} b6 {[%emt 0:00:37]} 41. Kf6 {[%emt 0:34:23]} (41. Nc3 $11) 41... Kb5 {[%emt 0:31:13]} (41... Kd5 $17 42. Nc3+ Kc4) 42. Ke5 {[%emt 0:00:42] The position is equal.} Ng6+ {[%emt 0:00:13]} 43. Kxe6 {[%emt 0:01:15]} Kxb4 {[%emt 0:00:03]} 44. Kf5 {[%emt 0:00:42]} Nh4+ {[%emt 0:00:06]} 45. Kg4 {[%emt 0:00:00]} Ng6 {[%emt 0:00:00] aiming for ...a5.} 46. Kf5 {[%emt 0:00:00]} Nh4+ {[%emt 0:00:00]} 47. Kg4 {[%emt 0:00:00]} Ng6 {[%emt 0:00:00] Threatens to win with ...a5.} 48. Kf5 {[%emt 0:00:00] Weighted Error Value: White=0.16 (very precise) /Black=0.15 (very precise)} 1/2-1/2

[Event "44th Chess Olympiad Women 2022"]
[Site "Chennai"]
[Date "2022.08.05"]
[Round "7.38"]
[White "Bwalya Mulwale, Lubuuto"]
[Black "Koljevic, Nikolina"]
[Result "1/2-1/2"]
[ECO "D02"]
[WhiteElo "1751"]
[BlackElo "2014"]
[Annotator "TA"]
[PlyCount "178"]
[EventDate "2022.07.29"]
[EventType "team-tourn"]
[EventCountry "IND"]
[SourceTitle "playchess.com"]
[Source "ChessBase"]
[SourceQuality "1"]
[WhiteTeam "Zambia"]
[BlackTeam "Montenegro"]
[WhiteTeamCountry "ZAM"]
[BlackTeamCountry "MNE"]
[TimeControl "40/5400+30:1800+30"]

{[%evp 12,178,-4,-9,0,-3,-3,-13,-10,-12,-9,-25,17,-38,-14,-139,-128,-118,-122,-111,-123,-125,-112,-125,-33,-43,7,-82,-23,-34,-34,-30,-28,-69,-60,-108,-102,-121,-8,-8,-8,-8,-8,-8,-8,-8,-8,-11,-7,-94,-81,-68,-38,-118,-120,-127,-130,-142,-143,-145,-23,-149,-154,-203,-159,-268,-267,-275,-264,-243,-229,-275,-252,-268,-282,-237,-186,-177,-168,-161,-147,-139,-68,-68,-68,-68,-68,-69,-69,-68,-20,-68,-68,-68,-68,-127,-129,-6254,-6172,-6158,-6158,-5331,-5324,-5317,-5051,-4307,-8,-8,-8,-427,-8,-8,0,0,0,0,0,0,0,0,0,0,0,0,0,0,0,0,0,0,0,0,0,0,0,0,0,0,0,0,0,-8,-8,-8,-8,-8,-8,-8,-8,-8,-8,-8,-8,-8,0,0,0,-8,-8,-8,0,0,0,0,0,0,0,0,0]} 1. d4 {[%emt 0:00:05]} Nf6 {[%emt 0:00:08]} 2. Nf3 {[%emt 0:00:08]} e6 {[%emt 0:00:22]} 3. Bf4 {[%emt 0:01:37]} d5 {[%emt 0:01:34]} 4. e3 {[%emt 0:00:29]} Bd6 {[%emt 0:00:09]} 5. Bg3 {[%emt 0:00:12]} O-O {[%emt 0:02:45]} 6. Bd3 {[%emt 0:00:31]} b6 {[%emt 0:00:13]} 7. Nbd2 {[%emt 0:01:04]} Bb7 {[%emt 0:00:58] D02: 1 d4 d5 2 Nf3 sidelines, including 2...Nf6 3 g3 and 2...Nf6 3 Bf4.} 8. c3 {[%emt 0:03:11]} c5 {[%emt 0:02:07]} 9. Qe2 {[%emt 0:06:25]} Ne4 {[%emt 0:03:42]} 10. Bxd6 {[%emt 0:07:04]} Qxd6 {[%emt 0:00:36]} 11. h4 {[%emt 0:08:14]} f5 {[%emt 0:03:18][%cal Bf7f5,Bf5e4][%mdl 32] [#]} 12. Ng5 $146 {[%emt 0:04:48]} (12. Ne5 $11) ({Predecessor:} 12. Ne5 Nd7 13. Nxd7 Qxd7 14. Nf3 Qe7 15. Rh3 Nf6 16. Ne5 {1-0 (40) Salykin,A (2096)-Sokolov,J (2006) Kokkola 2019}) 12... Nd7 $15 {[%emt 0:08:10]} 13. Bxe4 {[%emt 0:03:19]} (13. Qh5 Ndf6 14. Qe2 Bc6 $15) (13. Ndf3 $11 {keeps the balance.}) 13... fxe4 $17 {[%emt 0:05:51]} 14. O-O-O {[%emt 0:04:34]} cxd4 {[%emt 0:13:36]} 15. exd4 {[%emt 0:02:37]} b5 {[%emt 0:15:17]} 16. f3 {[%emt 0:06:56][%cal Rf3e4]} ({Not} 16. Qxb5 $2 Ba6 17. Qa4 Rxf2 $19) 16... b4 {[%emt 0:02:31]} 17. cxb4 {[%emt 0:05:28][%cal Rf3e4]} Qxb4 {[%emt 0:03:44]} (17... h6 $17 18. fxe4 hxg5 19. hxg5 Kf7) 18. fxe4 $15 {[%emt 0:04:01]} Qxd4 {[%emt 0:04:42]} (18... Rae8 $15) 19. Nb3 {[%emt 0:05:32]} (19. Nxe6 $11 Rfc8+ 20. Kb1) 19... Qf2 {[%emt 0:04:19]} (19... Qb6 $17 {And now ...Rf2 would win.} 20. Kb1 h6) 20. Qxf2 {[%emt 0:05:11]} (20. Qg4 {is interesting.} Rae8 21. Nxe6 Rf7 22. exd5 Nb6 23. Rd2) 20... Rxf2 {[%emt 0:00:02]} 21. Rd2 {[%emt 0:00:13]} ({Of course not} 21. Nxe6 Rc8+ 22. Kb1 Rcc2 $17) 21... Rxd2 {[%emt 0:03:46]} 22. Nxd2 {[%emt 0:00:03]} Nc5 {[%emt 0:00:33]} 23. Rh3 {[%emt 0:03:22]} (23. e5 $15) 23... h6 $17 {[%emt 0:03:41]} 24. b4 {[%emt 0:04:07]} Na6 {[%emt 0:05:33]} ({Weaker is} 24... Nxe4 25. Ngxe4 dxe4 26. a3 $15) (24... Rc8 $17 25. bxc5 Rxc5+ 26. Kb2 hxg5) 25. Nxe6 $11 {[%emt 0:03:44] Black must now prevent Rg3.} Re8 {[%emt 0:05:48]} 26. Nc5 {[%emt 0:03:25]} Nxc5 {[%emt 0:00:25]} 27. bxc5 {[%emt 0:00:18]} dxe4 {[%emt 0:00:09][%mdl 4096] Endgame KRB-KRN} 28. Re3 {[%emt 0:00:04]} Re5 {[%emt 0:01:09]} 29. Nb3 $1 {[%emt 0:01:18]} a5 {[%emt 0:04:18][%cal Ba7a5,Ba5a4][%mdl 32]} 30. Kb2 {[%emt 0:08:40]} (30. Rc3 $11) 30... a4 $17 {[%emt 0:00:48]} 31. Na5 {[%emt 0:00:19]} Ba8 {[%emt 0:02:16]} 32. Ka3 {[%emt 0:01:21]} (32. Kc3 $15) 32... Rxc5 {[%emt 0:00:26]} 33. Kxa4 {[%emt 0:00:28]} Rc2 {[%emt 0:00:12][%csl LRa2,LRg2]} 34. g3 {[%emt 0:00:15]} Rxa2+ {[%emt 0:00:22]} 35. Kb4 {[%emt 0:00:17]} Rf2 {[%emt 0:01:48]} ({Black should play} 35... Kf7 $1 $17 {Threatens to win with ...Bd5.} 36. Nc4 Ke6) 36. Kc3 {[%emt 0:01:04] [#]} (36. Nc4 $1 $11) 36... Kf7 $1 {[%emt 0:00:57]} 37. Nb3 {[%emt 0:00:40]} (37. Nc4 $17) 37... Ke6 {[%emt 0:01:07]} 38. Nc5+ {[%emt 0:02:19]} (38. Kd4 $17 {was the only defense.}) 38... Kf5 $19 {[%emt 0:00:27]} 39. Kd4 {[%emt 0:02:02][%cal Rc5e4]} Rd2+ {[%emt 0:00:06]} 40. Kc3 {[%emt 0:00:06]} Rd1 {[%emt 0:00:45]} 41. Kc2 {[%emt 0:32:43]} Rd6 {[%emt 0:31:23]} 42. Kc3 {[%emt 0:01:43]} Ke5 {[%emt 0:00:00]} 43. Nb3 {[%emt 0:00:00]} Rc6+ {[%emt 0:00:00]} 44. Kd2 {[%emt 0:00:00]} Ra6 {[%emt 0:00:00]} 45. Nc1 {[%emt 0:00:00]} Bd5 {[%emt 0:00:00] Hoping for ...Bc4.} 46. Rc3 {[%emt 0:00:00] Inhibits Bc4.} Ra7 {[%emt 0:00:00]} (46... Ra4 $17 47. Ne2 Bc4) 47. Ne2 $15 {[%emt 0:00:00]} Rf7 {[%emt 0:00:00]} 48. Nf4 {[%emt 0:00:00]} g5 {[%emt 0:00:00]} 49. hxg5 {[%emt 0:00:00]} hxg5 {[%emt 0:00:00]} 50. Ne2 {[%emt 0:00:00]} Rd7 {[%emt 0:01:23]} (50... Rf3 $15 {might be stronger.}) 51. Ke3 {[%emt 0:00:00]} (51. Rc5 $11 {is more appropriate.}) 51... Kf5 {[%emt 0:01:58]} 52. Rc5 {[%emt 0:00:00]} Kg4 {[%emt 0:00:37]} 53. Nc3 {[%emt 0:03:18]} (53. Ra5 $1 $15) 53... Bb7 $17 {[%emt 0:00:48] ...Rd3+ is the strong threat.} 54. Nxe4 $2 {[%emt 0:01:57][%mdl 8192]} (54. Ke2 $17) 54... Bxe4 $19 {[%emt 0:00:47]} 55. Kxe4 $17 {[%emt 0:00:11] KR-KR} Re7+ {[%emt 0:00:13]} 56. Kd4 {[%emt 0:01:09]} Re1 {[%emt 0:00:18]} 57. Kd3 {[%emt 0:01:00]} Rg1 {[%emt 0:01:07]} 58. Ke2 {[%emt 0:00:13]} Rg2+ $2 {[%emt 0:00:14]} (58... Rxg3 $19 59. Rc8 Rf3) 59. Kf1 $1 $11 {[%emt 0:00:09]} Rxg3 {[%emt 0:00:28]} 60. Kf2 $2 {[%emt 0:00:07][%mdl 8192] [#]} (60. Rc7 $11) 60... Rf3+ $2 {[%emt 0:00:14]} ({Black should try} 60... Kh3 $1 $19 61. Rc7 Rg2+ 62. Kf1 g4 63. Rh7+ Kg3) 61. Kg2 {[%emt 0:00:04] The position is equal.} Rf4 {[%emt 0:00:25]} 62. Rc3 {[%emt 0:00:30]} Rb4 {[%emt 0:01:08]} 63. Rg3+ {[%emt 0:00:24]} Kf4 {[%emt 0:00:29]} 64. Rf3+ $1 {[%emt 0:00:10]} Ke4 {[%emt 0:00:29]} 65. Rc3 {[%emt 0:01:21]} Kf4 {[%emt 0:00:54]} 66. Rf3+ $1 {[%emt 0:00:03]} Ke5 {[%emt 0:00:06]} 67. Kg3 {[%emt 0:00:43]} Rb1 {[%emt 0:01:12]} 68. Kg2 {[%emt 0:00:17]} Rd1 {[%emt 0:00:48]} 69. Re3+ {[%emt 0:00:09]} Kf5 {[%emt 0:00:20]} 70. Rf3+ {[%emt 0:00:44]} Ke4 {[%emt 0:00:17][%cal Od1g1]} 71. Ra3 {[%emt 0:00:26]} Re1 {[%emt 0:01:05]} 72. Ra5 {[%emt 0:00:22]} Kf4 {[%emt 0:00:16]} 73. Ra4+ {[%emt 0:01:01]} Kf5 {[%emt 0:00:06]} 74. Ra5+ {[%emt 0:00:18]} Kg4 {[%emt 0:00:06]} 75. Ra4+ {[%emt 0:00:44]} Kh5 {[%emt 0:00:03]} 76. Ra8 {[%emt 0:00:59]} Re3 {[%emt 0:01:00]} 77. Ra5 {[%emt 0:00:50]} Rb3 {[%emt 0:00:15]} 78. Rc5 {[%emt 0:00:16]} Kh4 {[%emt 0:00:04]} 79. Rc4+ {[%emt 0:00:57]} g4 {[%emt 0:00:27]} 80. Rc2 {[%emt 0:00:26] Prevents Rb2.} Ra3 {[%emt 0:01:15]} 81. Rb2 {[%emt 0:00:12]} Ra4 {[%emt 0:00:41]} 82. Rc2 {[%emt 0:00:21]} Kg5 {[%emt 0:00:16]} 83. Rf2 {[%emt 0:00:19]} Rb4 {[%emt 0:00:31]} 84. Kh2 {[%emt 0:00:38]} Kh4 {[%emt 0:00:27] ( -> ...g3+)} 85. Kg2 {[%emt 0:00:05]} g3 {[%emt 0:00:20]} 86. Rc2 {[%emt 0:00:15]} Kg4 {[%emt 0:00:18]} 87. Ra2 {[%emt 0:00:13]} Rb3 {[%emt 0:00:55]} 88. Ra4+ {[%emt 0:00:13]} Kf5 {[%emt 0:00:04]} 89. Ra5+ {[%emt 0:00:47]} Ke4 {[%emt 0:00:41] Weighted Error Value: White=0.46/Black=0.47} 1/2-1/2

[Event "44th Chess Olympiad Women 2022"]
[Site "Chennai"]
[Date "2022.08.05"]
[Round "7.40"]
[White "Nakabo, Peninah"]
[Black "Shabanaj, Eglantina"]
[Result "1-0"]
[ECO "C05"]
[WhiteElo "1747"]
[BlackElo "1940"]
[Annotator "TA"]
[PlyCount "142"]
[EventDate "2022.07.29"]
[EventType "team-tourn"]
[EventCountry "IND"]
[SourceTitle "playchess.com"]
[Source "ChessBase"]
[SourceQuality "1"]
[WhiteTeam "Uganda"]
[BlackTeam "Albania"]
[WhiteTeamCountry "UGA"]
[BlackTeamCountry "ALB"]
[TimeControl "40/5400+30:1800+30"]

{[%evp 15,142,-10,0,0,0,0,8,2,37,22,36,-30,-15,-60,-64,-59,-63,-110,-26,-20,151,150,154,144,664,695,29995,1418,29994,576,579,578,577,567,549,572,541,485,572,451,450,443,447,0,0,0,536,573,573,525,776,765,781,751,29989,592,569,581,628,527,592,568,650,649,636,626,629,617,620,612,683,661,770,750,878,876,1010,979,919,887,877,848,872,858,851,820,948,948,948,935,919,904,985,987,1133,1108,1917,2048,2332,2252,1890,1842,6721,5435,29972,29973,29974,29975,29973,29975,29970,29971,29981,29982,29980,29981,29978,29980,29987,29988,29988,29988,29990,29991,29991,29992,29992,29993,29993]} 1. e4 {[%emt 0:00:06]} e6 {[%emt 0:00:11]} 2. d4 {[%emt 0:00:10]} d5 {[%emt 0:00:05]} 3. Nd2 {[%emt 0:00:20]} Nf6 {[%emt 0:00:08]} 4. exd5 {[%emt 0:01:10]} exd5 {[%emt 0:06:09]} 5. Ngf3 {[%emt 0:00:13]} Bd6 {[%emt 0:03:27]} 6. Bd3 {[%emt 0:00:18]} O-O {[%emt 0:00:26]} 7. O-O {[%emt 0:00:06]} Bg4 {[%emt 0:00:43]} 8. c3 {[%emt 0:00:13]} c5 {[%emt 0:02:07]} 9. dxc5 {[%emt 0:00:19] C05: French Tarrasch: 3...Nf6 4 e5 Nfd7, 5 f4 and 5 Bd3 sidelines.} Bxc5 {[%emt 0:00:06]} 10. Qc2 {[%emt 0:00:39]} Nc6 {[%emt 0:00:51]} 11. Nb3 {[%emt 0:09:55] The position is equal.} Bd6 {[%emt 0:04:37]} (11... Bb6 $5 {[%cal Rg4f3]}) 12. Nbd4 {[%emt 0:03:47]} Rc8 {[%emt 0:02:52][%cal Oc6b4] [#]} 13. Nxc6 $146 {[%emt 0:01:14]} (13. Bg5 $14) ({Predecessor:} 13. a3 Bb8 14. Bf5 {½-½ (14) Varkonyi,M (1627)-Herbst,C (2023) Bad Neustadt/Saale 2008}) 13... bxc6 $11 {[%emt 0:00:47]} 14. Bf5 {[%emt 0:09:26]} Bxf3 {[%emt 0:05:57]} 15. gxf3 {[%emt 0:03:04]} Rb8 {[%emt 0:01:14]} 16. Kh1 {[%emt 0:00:41]} (16. Bg5 $1 $15 {is superior.}) 16... Qc7 {[%emt 0:03:28]} (16... Bc7 $1 $17 {Strongly threatening ...Qd6.} 17. Rg1 Qd6) 17. Bg5 {[%emt 0:03:45] Black must now prevent Bxf6.} Bxh2 $2 {[%emt 0:03:36]} (17... Be7 $11) 18. Bxf6 $16 {[%emt 0:00:59]} gxf6 {[%emt 0:00:05]} 19. Bxh7+ {[%emt 0:19:01]} Kg7 $2 {[%emt 0:05:03][%mdl 8192] [#]} (19... Kh8 $16) 20. Rg1+ $1 $18 {[%emt 0:06:09][%mdl 512]} Kh6 {[%emt 0:04:46] [#]} (20... Bg3 21. Rxg3+) 21. Rg4 {[%emt 0:08:34]} (21. Rg6+ $142 $3 {[%mdl 512]} Kxh7 22. Rg4+ f5 23. Qxf5+ Kh6 24. Rh4+ Kg7 25. Qg5#) 21... Rh8 {[%emt 0:04:49] [#]} 22. Rh4+ {[%emt 0:01:43]} (22. Rag1 $142 $1 {[%mdl 512]} Bxg1 (22... Qf4 23. Qc1) 23. Qc1+ (23. Kxg1 Qe5 $15) 23... Kxh7 24. Qxg1 Rb4 25. cxb4 Qg3 26. Qxg3 Kh6 27. Rh4#) 22... Kg7 {[%emt 0:00:37]} 23. Rxh2 {[%emt 0:00:29]} (23. Qf5 Bf4 $16) 23... Qf4 {[%emt 0:00:18]} 24. Rg1+ {[%emt 0:02:55]} Kf8 {[%emt 0:00:21]} 25. Rg3 {[%emt 0:01:20]} Re8 {[%emt 0:01:04]} 26. Kg2 {[%emt 0:02:59]} Re1 {[%emt 0:03:07]} 27. Bf5 {[%emt 0:03:48]} Rxh2+ {[%emt 0:00:41]} 28. Kxh2 {[%emt 0:00:12]} Qe5 {[%emt 0:09:40]} 29. Bd3 {[%emt 0:07:33] Inhibits Re2.} ({White should play} 29. Kg2 $18) 29... Qh5+ $11 {[%emt 0:01:24]} 30. Rh3 {[%emt 0:00:16]} Qe5+ {[%emt 0:00:11][%mdl 8192] White stays focused until the end.} (30... Qg5 $11 {and Black is okay.} 31. Rg3 Qh6+ 32. Rh3 Qg5) 31. Kg2 $18 {[%emt 0:00:30] Threatens to win with Qa4.} Qg5+ {[%emt 0:00:08]} 32. Rg3 {[%emt 0:00:22]} Qh4 {[%emt 0:00:06][%csl Ge1][%cal Rh4h1] [#]} 33. Bf1 $1 {[%emt 0:02:30]} Re5 {[%emt 0:08:04]} 34. Qb3 {[%emt 0:02:40]} Rh5 {[%emt 0:06:13]} 35. Qb4+ {[%emt 0:00:50]} (35. Qa3+ $142 Ke8 36. Rg8+ Kd7 37. Qxa7+ Ke6 38. Re8+ Kf5 39. Bd3+ Kg5 40. Qe3+ Qf4 41. Rg8+ Kh6 42. Qxf4+ Rg5+ 43. Rxg5 fxg5 44. Qxf7 c5 45. Qh7#) 35... Qxb4 {[%emt 0:00:23]} 36. cxb4 {[%emt 0:00:10][%mdl 4096] Endgame KRB-KR} Re5 {[%emt 0:00:33]} 37. Rg4 {[%emt 0:01:04]} Re1 {[%emt 0:00:41]} 38. Rd4 {[%emt 0:00:21]} Rb1 {[%emt 0:00:23]} 39. Rd2 {[%emt 0:00:12]} Ke7 {[%emt 0:00:36]} 40. Ba6 {[%emt 0:01:13]} Kd6 {[%emt 0:00:41]} 41. f4 {[%emt 0:30:24]} Re1 {[%emt 0:30:33]} 42. Kf3 {[%emt 0:01:06]} Rg1 {[%emt 0:02:03]} 43. Rc2 {[%emt 0:05:00]} Rd1 {[%emt 0:02:42]} 44. Bb7 {[%emt 0:00:55]} Rd3+ {[%emt 0:01:42]} 45. Kg4 {[%emt 0:03:28]} Rd4 {[%emt 0:02:58]} 46. Rxc6+ {[%emt 0:00:00]} Ke7 {[%emt 0:00:00]} 47. Rc7+ {[%emt 0:00:00]} Kd6 {[%emt 0:00:00]} 48. Rxf7 {[%emt 0:00:00]} Rxb4 {[%emt 0:00:00]} 49. b3 {[%emt 0:00:00]} Ke6 {[%emt 0:00:00]} 50. Rh7 {[%emt 0:00:00]} Rd4 {[%emt 0:00:00]} 51. Bc8+ {[%emt 0:00:00]} Kd6 {[%emt 0:00:00]} 52. Rxa7 {[%emt 0:00:00]} Rd2 {[%emt 0:00:00]} 53. Kf3 {[%emt 0:00:00]} Rc2 {[%emt 0:00:00]} 54. Bf5 {[%emt 0:00:00]} Rc3+ {[%emt 0:00:00]} 55. Ke2 {[%emt 0:00:00]} Rc6 {[%emt 0:00:00] Prevents Ra6.} 56. Bd3 {[%emt 0:00:00] White wants to mate with Ra6.} Kc5 {[%emt 0:00:00]} 57. Rb7 {[%emt 0:00:00]} Re6+ {[%emt 0:00:00]} 58. Kd2 {[%emt 0:00:00]} Re8 {[%emt 0:00:00]} 59. b4+ {[%emt 0:00:00]} Kd4 {[%emt 0:00:00]} 60. a4 {[%emt 0:00:00][%cal Ba2a4,Ba4a5,Ba5a6,Ba6a7][%mdl 32] White mates.} Rc8 {[%emt 0:00:00]} 61. a5 {[%emt 0:00:00]} Rc3 {[%emt 0:00:00]} 62. Be2 {[%emt 0:00:00]} Ra3 {[%emt 0:00:00]} 63. Rc7 {[%emt 0:00:00]} Ke4 {[%emt 0:00:00]} 64. a6 {[%emt 0:00:00]} d4 {[%emt 0:00:00]} 65. a7 {[%emt 0:00:00]} Ra2+ {[%emt 0:00:00]} 66. Ke1 {[%emt 0:00:00]} Ra1+ {[%emt 0:00:00]} 67. Bd1 {[%emt 0:00:00]} d3 {[%emt 0:00:00]} 68. b5 {[%emt 0:00:00][%cal Bb4b5,Bb5b6,Bb6b7][%mdl 32]} Ra2 {[%emt 0:10:17]} 69. b6 {[%emt 0:00:00]} d2+ {[%emt 0:00:23]} 70. Ke2 {[%emt 0:00:00]} Kxf4 {[%emt 0:08:22]} 71. b7 {[%emt 0:00:00]} Rxa7 {[%emt 0:07:03] Weighted Error Value: White=0.66/Black=1.37} 1-0